bitfinex-derivatives/quotes_BNBF0:USTF0_20251203
["timestamp","ask_amount","ask_price","bid_price","bid_amount"]
[1764727540107,0.69344417,884.15,881.21,0.01146824]
[1764727540304,0.69344417,884.14,881.21,0.01146824]
[1764727540504,0.69344417,884.13,881.21,0.01146824]
[1764727540703,0.69344417,884.12,881.21,0.01146824]
[1764727540904,0.69344417,884.11,881.21,0.01146824]
[1764727541103,0.69344417,884.1,881.21,0.01146824]
[1764727541305,1.53827343,884.09,881.21,0.01146824]
[1764727541505,0.69344417,884.08,881.21,0.01146824]
[1764727542105,0.69344417,884.07,881.21,0.01146824]
[1764727542305,0.69344417,884.06,881.21,0.01146824]
[1764727542505,0.69344417,884.05,881.21,0.01146824]
[1764727542706,0.69344417,884.04,881.21,0.01146824]
[1764727542906,0.69344417,884.03,881.21,0.01146824]
[1764727543107,0.69344417,884.02,881.21,0.01146824]
[1764727543408,0.69344417,884.01,881.21,0.01146824]
[1764727543711,0.69344417,884.0,881.21,0.01146824]
[1764727543907,0.69344417,883.99,881.21,0.01146824]
[1764727544113,0.69344417,883.98,881.21,0.01146824]
[1764727544307,0.69344417,883.97,881.21,0.01146824]
[1764727544512,0.69344417,883.96,881.21,0.01146824]
[1764727544712,0.84482926,884.32,881.21,0.01146824]
[1764727545012,0.70389111,884.31,881.21,0.01146824]
[1764727545206,0.70389111,884.3,881.21,0.01146824]
[1764727545408,0.70389111,884.29,881.21,0.01146824]
[1764727545615,0.70389111,884.28,881.21,0.01146824]
[1764727545809,0.70389111,884.27,881.21,0.01146824]
[1764727546010,0.70389111,884.26,881.21,0.01146824]
[1764727546309,0.70389111,884.25,881.21,0.01146824]
[1764727546508,0.70389111,884.24,881.21,0.01146824]
[1764727546713,0.70389111,884.23,881.21,0.01146824]
[1764727546907,0.70389111,884.22,881.21,0.01146824]
[1764727547208,0.70389111,884.21,881.21,0.01146824]
[1764727547410,0.84482926,884.17,881.21,0.01146824]
[1764727547608,0.70389111,884.16,881.21,0.01146824]
[1764727549313,0.70389111,884.15,881.21,0.01146824]
[1764727549512,0.70389111,884.14,881.21,0.01146824]
[1764727549813,0.70389111,884.13,881.21,0.01146824]
[1764727550112,1.54872037,884.12,881.21,0.01146824]
[1764727550307,1.54872037,884.11,881.21,0.01146824]
[1764727550512,0.70389111,884.1,881.21,0.01146824]
[1764727550808,0.70389111,884.09,881.21,0.01146824]
[1764727551012,0.70389111,884.08,881.21,0.01146824]
[1764727551214,0.70389111,884.07,881.21,0.01146824]
[1764727551508,0.70389111,884.06,881.21,0.01146824]
[1764727551713,0.70389111,884.05,881.21,0.01146824]
[1764727551914,0.70389111,884.04,881.21,0.01146824]
[1764727552213,0.70389111,884.03,881.21,0.01146824]
[1764727552413,0.70389111,884.02,881.21,0.01146824]
[1764727552713,0.70389111,884.01,881.21,0.01146824]
[1764727552914,0.70389111,884.0,881.21,0.01146824]
[1764727553212,0.70389111,883.99,881.21,0.01146824]
[1764727553413,0.84482926,883.96,881.21,0.01146824]
[1764727553614,0.84482926,883.94,881.21,0.01146824]
[1764727553813,0.70389111,883.93,881.21,0.01146824]
[1764727554011,1.54872037,883.93,881.21,0.01146824]
[1764727554209,1.54872037,883.92,881.21,0.01146824]
[1764727554510,0.70389111,883.91,881.21,0.01146824]
[1764727554814,1.6887608,884.24,880.95,2.78574515]
[1764727554815,0.84482926,883.71,881.6,0.19708562]
[1764727555011,0.70389111,883.7,881.6,0.19708562]
[1764727557416,0.84482926,883.67,881.6,0.19708562]
[1764727557618,0.84482926,883.58,880.65,2.78574515]
[1764727557814,0.70389111,883.57,881.48,0.19712191]
[1764727558013,0.70389111,883.57,880.65,2.78574515]
[1764727558214,0.70389111,883.56,881.47,0.19713642]
[1764727558414,0.70389111,883.56,880.64,2.78574515]
[1764727558619,0.84482926,883.54,880.61,2.78574515]
[1764727558814,0.70389111,883.53,880.61,2.78574515]
[1764727559116,0.84482926,883.48,880.54,2.78574515]
[1764727559320,1.54872037,883.47,880.54,2.78574515]
[1764727559615,0.70389111,883.46,880.54,2.78574515]
[1764727559819,0.70389111,883.46,879.76,0.01321855]
[1764727559820,0.70389111,883.46,881.27,0.19715932]
[1764727561625,0.84482926,883.44,881.27,0.19715932]
[1764727561820,0.84482926,883.39,881.27,0.19715932]
[1764727562021,0.84482926,883.39,880.41,2.78574515]
[1764727562022,0.70389111,883.38,880.41,2.78574515]
[1764727562216,0.84482926,883.3,881.03,0.19720177]
[1764727562522,0.84482926,883.22,881.03,0.19720177]
[1764727562716,0.70389111,883.21,881.03,0.19720177]
[1764727562916,0.70389111,883.2,881.03,0.19720177]
[1764727563117,0.70389111,883.19,881.03,0.19720177]
[1764727563321,0.84482926,883.11,880.15,0.00817477]
[1764727563522,1.54872037,883.1,880.91,0.19724369]
[1764727563719,0.70389111,883.09,880.91,0.19724369]
[1764727563918,0.70389111,883.08,880.91,0.19724369]
[1764727564120,0.70389111,883.07,880.91,0.19724369]
[1764727564321,0.70389111,883.06,880.91,0.19724369]
[1764727564522,0.70389111,883.05,880.91,0.19724369]
[1764727564718,0.70389111,883.04,880.91,0.19724369]
[1764727565019,0.84482926,883.33,880.91,0.19724369]
[1764727565221,0.70254538,883.32,880.91,0.19724369]
[1764727565419,0.70254538,883.31,880.91,0.19724369]
[1764727565623,0.70254538,883.3,880.91,0.19724369]
[1764727565924,0.70254538,883.29,880.91,0.19724369]
[1764727566126,0.70166538,883.28,880.91,0.19724369]
[1764727566325,0.70166538,883.27,880.91,0.19724369]
[1764727566522,0.70166538,883.26,880.91,0.19724369]
[1764727566723,0.70166538,883.25,880.91,0.19724369]
[1764727566928,0.70166538,883.24,880.91,0.19724369]
[1764727567126,0.70166538,883.23,880.91,0.19724369]
[1764727567428,0.70166538,883.22,880.91,0.19724369]
[1764727567627,0.70166538,883.21,880.91,0.19724369]
[1764727567824,0.70166538,883.2,880.91,0.19724369]
[1764727568028,0.83118619,883.2,880.91,0.19724369]
[1764727568228,0.70166538,883.19,880.91,0.19724369]
[1764727568431,0.70166538,883.19,880.03,0.01047099]
[1764727568432,0.83118619,883.03,880.03,0.01047099]
[1764727568630,0.70166538,883.02,880.84,0.19726381]
[1764727568928,1.53285157,883.01,880.84,0.19726381]
[1764727569130,0.83118619,882.77,880.84,0.19726381]
[1764727569330,0.70166538,882.76,880.84,0.19726381]
[1764727569534,0.70166538,882.75,880.84,0.19726381]
[1764727569732,0.70166538,882.74,880.84,0.19726381]
[1764727570034,0.70166538,882.73,880.84,0.19726381]
[1764727570234,0.70166538,882.72,880.84,0.19726381]
[1764727570436,0.70166538,882.71,880.84,0.19726381]
[1764727570735,0.70166538,882.7,880.84,0.19726381]
[1764727570936,0.70166538,882.69,879.96,0.01396696]
[1764727571233,0.70166538,882.68,880.68,0.19734044]
[1764727571441,0.70166538,882.67,880.68,0.19734044]
[1764727571735,0.70166538,882.66,880.68,0.19734044]
[1764727571932,0.83118619,882.87,880.68,0.19734044]
[1764727571933,0.70166538,882.65,880.68,0.19734044]
[1764727572130,0.70166538,882.64,880.68,0.19734044]
[1764727572334,0.70166538,882.63,880.68,0.19734044]
[1764727572632,0.70166538,882.62,880.68,0.19734044]
[1764727572837,0.70166538,882.61,880.68,0.19734044]
[1764727573037,0.70166538,882.6,880.68,0.19734044]
[1764727573337,0.70166538,882.59,880.68,0.19734044]
[1764727573536,0.70166538,882.58,880.68,0.19734044]
[1764727573737,0.70166538,882.57,880.68,0.19734044]
[1764727574037,0.70166538,882.56,880.68,0.19734044]
[1764727574338,0.83118619,882.84,880.68,0.19734044]
[1764727574538,0.71175444,882.83,880.68,0.19734044]
[1764727574737,0.83118619,882.77,880.68,0.19734044]
[1764727574938,1.54294063,882.76,880.68,0.19734044]
[1764727575141,0.71175444,882.75,880.68,0.19734044]
[1764727575338,0.71175444,882.74,880.68,0.19734044]
[1764727575538,0.71175444,882.73,880.68,0.19734044]
[1764727575737,0.71175444,882.72,880.68,0.19734044]
[1764727575935,1.6887608,883.08,880.68,0.19734044]
[1764727575936,0.71175444,882.71,880.68,0.19734044]
[1764727576134,0.71175444,882.7,880.68,0.19734044]
[1764727576337,0.83118619,882.62,880.68,0.19734044]
[1764727576537,0.71175444,882.61,880.68,0.19734044]
[1764727576738,0.71175444,882.6,880.68,0.19734044]
[1764727576940,0.83118619,882.58,879.8,0.01302582]
[1764727577139,0.83118619,882.49,880.5,0.19738801]
[1764727577335,0.83118619,882.44,880.5,0.19738801]
[1764727577540,0.71175444,882.43,880.5,0.19738801]
[1764727577840,0.71175444,882.42,880.5,0.19738801]
[1764727578040,0.71175444,882.41,880.5,0.19738801]
[1764727578241,0.71175444,882.4,880.5,0.19738801]
[1764727578441,0.71175444,882.39,880.5,0.19738801]
[1764727578742,0.71175444,882.38,880.5,0.19738801]
[1764727579042,0.71175444,882.37,880.5,0.19738801]
[1764727579339,0.71175444,882.36,880.5,0.19738801]
[1764727579538,0.71175444,882.35,880.5,0.19738801]
[1764727579742,0.71175444,882.34,880.5,0.19738801]
[1764727579942,0.71175444,882.33,880.5,0.19738801]
[1764727580142,0.71175444,882.32,880.5,0.19738801]
[1764727580340,0.71175444,882.31,880.5,0.19738801]
[1764727580545,0.71175444,882.3,880.5,0.19738801]
[1764727580744,0.83118619,882.44,880.5,0.19738801]
[1764727580745,0.71175444,882.29,880.5,0.19738801]
[1764727580945,0.71175444,882.28,880.5,0.19738801]
[1764727581146,0.71175444,882.27,880.5,0.19738801]
[1764727581340,0.71175444,882.26,880.5,0.19738801]
[1764727581540,0.71175444,882.25,880.5,0.19738801]
[1764727581744,0.71175444,882.24,880.5,0.19738801]
[1764727581945,0.71175444,882.23,880.5,0.19738801]
[1764727582246,0.71175444,882.22,880.5,0.19738801]
[1764727582446,0.71175444,882.21,880.5,0.19738801]
[1764727582647,0.71175444,882.2,880.5,0.19738801]
[1764727584244,0.71175444,882.2,879.62,0.01072763]
[1764727584543,0.71175444,882.2,880.4,0.19743617]
[1764727584748,2.786,882.21,879.52,0.01223321]
[1764727585046,2.786,882.21,880.26,0.19743393]
[1764727609864,0.71922235,882.2,880.26,0.19743393]
[1764727610061,0.71922235,882.19,880.26,0.19743393]
[1764727610260,0.71922235,882.18,880.26,0.19743393]
[1764727610464,2.786,882.21,880.26,0.19743393]
[1764727610664,0.71978574,882.2,880.26,0.19743393]
[1764727610865,0.71978574,882.19,880.26,0.19743393]
[1764727611063,0.71978574,882.18,880.26,0.19743393]
[1764727611269,0.71978574,882.17,880.26,0.19743393]
[1764727611463,0.71978574,882.16,880.26,0.19743393]
[1764727611664,0.71978574,882.15,880.26,0.19743393]
[1764727611867,0.71978574,882.14,880.26,0.19743393]
[1764727612069,2.786,882.21,879.65,2.78976706]
[1764727612070,0.71978574,882.13,879.65,2.78976706]
[1764727612271,0.71978574,882.12,880.16,0.19741881]
[1764727612469,0.71978574,882.11,880.16,0.19741881]
[1764727612766,0.71978574,882.1,880.16,0.19741881]
[1764727612969,0.71978574,882.09,880.16,0.19741881]
[1764727613170,3.62004112,882.21,880.16,0.19741881]
[1764727613171,0.71978574,882.08,880.16,0.19741881]
[1764727613367,3.62004112,882.21,880.16,0.19741881]
[1764727613368,0.71978574,882.07,880.16,0.19741881]
[1764727613667,0.71978574,882.06,880.16,0.19741881]
[1764727613865,0.71978574,882.05,880.16,0.19741881]
[1764727614066,0.71978574,882.04,880.16,0.19741881]
[1764727614371,0.71978574,882.03,880.16,0.19741881]
[1764727614665,0.71978574,882.02,880.16,0.19741881]
[1764727614866,0.71978574,882.01,880.16,0.19741881]
[1764727615170,2.786,882.21,880.16,0.19741881]
[1764727615171,0.71978574,882.0,880.16,0.19741881]
[1764727615370,0.71978574,881.99,880.16,0.19741881]
[1764727615571,0.71978574,881.98,880.16,0.19741881]
[1764727615768,0.71978574,881.97,880.16,0.19741881]
[1764727615967,0.71978574,881.96,880.16,0.19741881]
[1764727616268,0.71978574,881.95,880.16,0.19741881]
[1764727616471,0.71978574,881.94,880.16,0.19741881]
[1764727616672,0.71978574,881.93,880.16,0.19741881]
[1764727616872,0.71978574,881.92,880.16,0.19741881]
[1764727617069,0.71978574,881.91,880.16,0.19741881]
[1764727617271,0.71978574,881.9,880.16,0.19741881]
[1764727617469,0.83404112,882.19,880.16,0.19741881]
[1764727618070,1.55732624,882.2,880.16,0.19741881]
[1764727619275,0.72328512,882.19,880.16,0.19741881]
[1764727619472,0.72328512,882.18,880.16,0.19741881]
[1764727619676,0.72328512,882.17,880.16,0.19741881]
[1764727619976,0.72328512,882.16,880.16,0.19741881]
[1764727620177,0.72328512,882.15,880.16,0.19741881]
[1764727620474,0.72328512,882.14,879.84,2.78976706]
[1764727620673,0.72328512,882.13,880.06,0.19741881]
[1764727620878,0.72328512,882.12,880.06,0.19741881]
[1764727621075,0.72328512,882.11,880.06,0.19741881]
[1764727621275,0.72328512,882.1,880.06,0.19741881]
[1764727621480,0.72328512,882.09,879.88,2.78976706]
[1764727621681,1.55732624,882.08,879.92,0.19743505]
[1764727621876,0.72328512,882.07,879.92,0.19743505]
[1764727622079,1.55732624,882.06,879.92,0.19743505]
[1764727622279,0.72328512,882.05,879.92,0.19743505]
[1764727622477,1.55732624,882.04,879.92,0.19743505]
[1764727622680,0.72328512,882.03,879.92,0.19743505]
[1764727622882,0.72328512,882.02,879.92,0.19743505]
[1764727623081,0.72328512,882.01,879.92,0.19743505]
[1764727623283,0.72328512,882.0,879.92,0.19743505]
[1764727623481,0.72328512,881.99,879.92,0.19743505]
[1764727623681,0.72328512,881.98,879.92,0.19743505]
[1764727623881,0.72328512,881.97,879.92,0.19743505]
[1764727624081,0.72328512,881.96,879.92,0.19743505]
[1764727624284,0.72328512,881.95,879.92,0.19743505]
[1764727624481,0.72328512,881.94,879.92,0.19743505]
[1764727624685,0.72328512,881.93,879.92,0.19743505]
[1764727624886,0.72328512,881.92,879.92,0.19743505]
[1764727625083,0.83404112,882.2,879.92,0.19743505]
[1764727625286,1.55940858,882.2,879.95,2.78976706]
[1764727626186,1.55940858,882.2,880.0,2.78976706]
[1764727626390,0.72536746,882.19,880.0,2.78976706]
[1764727626587,0.72536746,882.18,880.0,2.78976706]
[1764727626891,0.72536746,882.17,880.03,2.78976706]
[1764727627186,2.786,882.21,879.92,0.19743505]
[1764727627187,0.72536746,882.16,880.08,2.78976706]
[1764727627391,0.72536746,882.15,880.08,2.78976706]
[1764727627592,0.72536746,882.14,880.08,2.78976706]
[1764727627790,0.72536746,882.13,880.12,2.78976706]
[1764727627991,0.72536746,882.12,880.12,2.78976706]
[1764727628187,0.72536746,882.11,880.12,2.78976706]
[1764727628492,0.72536746,882.1,880.16,2.78976706]
[1764727628790,0.72536746,882.09,880.16,2.78976706]
[1764727628989,0.72536746,882.08,880.19,2.78976706]
[1764727629187,0.72536746,882.07,880.19,2.78976706]
[1764727629389,0.72536746,882.06,880.23,2.78976706]
[1764727629693,2.786,882.21,880.23,2.78976706]
[1764727629894,0.72646868,882.2,880.24,2.78976706]
[1764727630094,0.72646868,882.19,880.24,2.78976706]
[1764727630389,0.72646868,882.18,880.29,2.78976706]
[1764727630587,0.72646868,882.17,880.29,2.78976706]
[1764727630792,0.72646868,882.16,880.29,2.78976706]
[1764727630990,0.72646868,882.15,880.29,2.78976706]
[1764727631194,0.72646868,882.14,880.29,2.78976706]
[1764727631499,0.72646868,882.13,880.3,2.78976706]
[1764727631693,0.72646868,882.12,880.3,2.78976706]
[1764727631892,0.72646868,882.11,880.3,2.78976706]
[1764727632090,0.72646868,882.1,880.3,2.78976706]
[1764727632291,0.72646868,882.09,880.3,2.78976706]
[1764727632494,0.72646868,882.08,880.24,2.78976706]
[1764727632794,0.72646868,882.07,880.24,2.78976706]
[1764727633091,0.72646868,882.06,880.25,2.78976706]
[1764727633295,0.72646868,882.05,880.25,2.78976706]
[1764727633495,0.72646868,882.04,880.26,2.78976706]
[1764727633695,0.72646868,882.03,880.26,2.78976706]
[1764727633892,0.72646868,882.02,880.26,2.78976706]
[1764727634091,0.72646868,882.01,880.26,2.78976706]
[1764727634291,2.786,882.21,880.26,2.78976706]
[1764727634494,0.72721311,882.2,880.31,2.78976706]
[1764727634696,0.72721311,882.19,880.31,2.78976706]
[1764727634890,0.72721311,882.18,880.31,2.78976706]
[1764727635094,0.72721311,882.17,880.3,2.78976706]
[1764727635295,0.72721311,882.16,880.3,2.78976706]
[1764727635492,0.72721311,882.15,880.3,2.78976706]
[1764727635696,2.786,882.21,880.46,2.78976706]
[1764727636195,2.786,882.21,880.19,3.90004322]
[1764727636196,0.71619999,882.2,880.51,2.78976706]
[1764727636396,0.71619999,882.19,880.51,2.78976706]
[1764727636597,2.786,882.21,880.51,2.78976706]
[1764727636792,0.71619157,882.2,880.51,2.78976706]
[1764727637092,0.71622419,882.19,880.51,2.78976706]
[1764727637297,2.786,882.21,880.51,2.78976706]
[1764727637796,2.786,882.21,880.55,2.78976706]
[1764727638697,0.83404112,882.52,880.55,2.78976706]
[1764727638993,0.7162391,882.51,880.55,2.78976706]
[1764727639198,0.7162391,882.5,880.59,2.78976706]
[1764727639399,0.7162391,882.49,880.59,2.78976706]
[1764727639596,0.7162391,882.48,880.59,2.78976706]
[1764727639896,0.7162391,882.47,880.66,2.78976706]
[1764727640199,0.7162391,882.46,880.66,2.78976706]
[1764727640397,0.7162391,882.45,880.65,2.78976706]
[1764727640600,0.7162391,882.44,880.65,2.78976706]
[1764727640797,0.7162391,882.43,880.65,2.78976706]
[1764727640999,6.01426761,882.67,880.65,2.78976706]
[1764727641000,0.7162391,882.42,880.65,2.78976706]
[1764727641299,0.7162391,882.41,880.64,2.78976706]
[1764727641502,0.7162391,882.4,880.64,2.78976706]
[1764727641704,0.7162391,882.39,880.64,2.78976706]
[1764727642005,0.7162391,882.38,880.65,2.78976706]
[1764727642200,0.7162391,882.37,880.65,2.78976706]
[1764727642406,0.7162391,882.36,880.6,2.78976706]
[1764727642603,0.7162391,882.35,880.6,2.78976706]
[1764727642802,0.7162391,882.34,880.6,2.78976706]
[1764727643003,0.7162391,882.33,880.6,2.78976706]
[1764727643204,0.7162391,882.32,880.6,2.78976706]
[1764727643407,2.548,882.41,880.6,2.78976706]
[1764727643609,0.715065,882.4,880.6,2.78976706]
[1764727643807,0.715065,882.39,880.6,2.78976706]
[1764727644007,0.715065,882.38,880.6,2.78976706]
[1764727644205,0.715065,882.37,880.6,2.78976706]
[1764727644406,0.715065,882.36,880.6,2.78976706]
[1764727644604,0.715065,882.35,880.6,2.78976706]
[1764727644803,0.715065,882.34,880.6,2.78976706]
[1764727645008,0.715065,882.33,880.54,2.78976706]
[1764727645208,0.715065,882.32,880.54,2.78976706]
[1764727645407,0.715065,882.31,880.54,2.78976706]
[1764727645604,0.715065,882.3,880.54,2.78976706]
[1764727645809,0.715065,882.29,880.54,2.78976706]
[1764727646009,2.548,882.41,880.22,3.90004322]
[1764727646010,2.548,882.41,880.56,2.78976706]
[1764727646210,0.71494509,882.4,880.56,2.78976706]
[1764727646409,2.548,882.41,880.56,2.78976706]
[1764727646410,0.71494509,882.39,880.56,2.78976706]
[1764727646606,0.71494509,882.38,880.55,2.78976706]
[1764727646807,0.71494509,882.37,880.55,2.78976706]
[1764727647107,0.71494509,882.36,880.54,2.78976706]
[1764727647407,0.71494509,882.35,880.54,2.78976706]
[1764727647607,0.71494509,882.34,880.5,2.78976706]
[1764727647812,0.71494509,882.33,880.5,2.78976706]
[1764727648011,0.71494509,882.32,880.51,2.78976706]
[1764727648211,0.71494509,882.31,880.51,2.78976706]
[1764727648409,0.71494509,882.3,880.51,2.78976706]
[1764727648713,0.71494509,882.29,880.51,2.78976706]
[1764727649009,0.71494509,882.28,880.42,2.78976706]
[1764727649212,0.71494509,882.27,880.42,2.78976706]
[1764727649511,0.71494509,882.26,880.42,2.78976706]
[1764727649711,0.71494509,882.25,880.42,2.78976706]
[1764727649909,0.71494509,882.24,880.42,2.78976706]
[1764727650110,0.71494509,882.23,880.42,2.78976706]
[1764727650309,0.71494509,882.22,880.42,2.78976706]
[1764727650512,0.71494509,882.21,880.42,2.78976706]
[1764727650809,0.71494509,882.2,880.42,2.78976706]
[1764727651010,0.71494509,882.19,880.42,2.78976706]
[1764727651210,0.71494509,882.18,880.42,2.78976706]
[1764727651413,0.71494509,882.17,880.42,2.78976706]
[1764727651614,2.548,882.41,880.42,2.78976706]
[1764727651814,0.71458507,882.4,880.42,2.78976706]
[1764727652114,0.71458507,882.39,880.42,2.78976706]
[1764727652313,0.71458507,882.38,880.42,2.78976706]
[1764727652510,0.71458507,882.37,880.42,2.78976706]
[1764727652714,0.71458507,882.36,880.42,2.78976706]
[1764727652910,0.71458507,882.35,880.42,2.78976706]
[1764727653109,0.71458507,882.34,880.42,2.78976706]
[1764727653309,0.71458507,882.33,880.42,2.78976706]
[1764727653613,0.71458507,882.32,880.42,2.78976706]
[1764727653810,0.71458507,882.31,880.42,2.78976706]
[1764727654011,0.71458507,882.3,880.42,2.78976706]
[1764727654210,0.71458507,882.29,880.42,2.78976706]
[1764727654512,0.71458507,882.28,880.42,2.78976706]
[1764727654713,0.71458507,882.27,880.42,2.78976706]
[1764727655013,0.71458507,882.26,880.42,2.78976706]
[1764727655214,0.71458507,882.25,880.44,2.78976706]
[1764727655415,0.71458507,882.24,880.44,2.78976706]
[1764727655615,0.71458507,882.23,880.43,2.78976706]
[1764727655917,0.71458507,882.22,880.43,2.78976706]
[1764727656214,0.71458507,882.21,880.43,2.78976706]
[1764727656414,0.71458507,882.2,880.43,2.78976706]
[1764727656610,0.71458507,882.19,880.43,2.78976706]
[1764727656815,0.71458507,882.18,880.43,2.78976706]
[1764727657013,2.548,882.41,880.43,2.78976706]
[1764727657216,0.71460978,882.4,880.44,2.78976706]
[1764727657416,0.71460978,882.39,880.44,2.78976706]
[1764727657614,0.71460978,882.38,880.44,2.78976706]
[1764727657913,0.71460978,882.37,880.44,2.78976706]
[1764727658113,0.71460978,882.36,880.44,2.78976706]
[1764727658319,0.71460978,882.35,880.58,2.78976706]
[1764727658518,0.71460978,882.34,880.58,2.78976706]
[1764727658713,0.71460978,882.33,880.58,2.78976706]
[1764727658913,2.548,882.41,880.6,2.78976706]
[1764727659117,0.71478545,882.4,880.6,2.78976706]
[1764727659314,0.71478545,882.39,880.6,2.78976706]
[1764727659517,2.548,882.41,880.6,2.78976706]
[1764727659518,0.71478545,882.38,880.6,2.78976706]
[1764727659716,0.71478545,882.37,880.6,2.78976706]
[1764727659919,0.71478545,882.36,880.56,2.78976706]
[1764727660119,0.71478545,882.35,880.56,2.78976706]
[1764727660318,0.71478545,882.34,880.56,2.78976706]
[1764727660517,0.71478545,882.33,880.56,2.78976706]
[1764727660721,2.548,882.41,880.56,2.78976706]
[1764727660722,0.71478545,882.32,880.56,2.78976706]
[1764727660922,0.71478545,882.31,880.55,2.78976706]
[1764727661123,0.71478545,882.3,880.55,2.78976706]
[1764727661319,2.548,882.41,880.55,2.78976706]
[1764727661522,0.71498661,882.4,880.56,2.78976706]
[1764727661718,0.71498661,882.39,880.56,2.78976706]
[1764727661917,0.71498661,882.38,880.57,2.78976706]
[1764727662122,0.71498661,882.37,880.57,2.78976706]
[1764727662322,0.71498661,882.36,880.57,2.78976706]
[1764727662521,0.71498661,882.35,880.56,2.78976706]
[1764727662720,0.71498661,882.34,880.56,2.78976706]
[1764727662920,0.71498661,882.33,880.56,2.78976706]
[1764727663124,0.71498661,882.32,880.56,2.78976706]
[1764727663424,0.71498661,882.31,880.57,2.78976706]
[1764727663624,2.548,882.41,880.57,2.78976706]
[1764727663921,0.71525111,882.4,880.58,2.78976706]
[1764727664120,2.548,882.41,880.58,2.78976706]
[1764727664121,0.71525111,882.39,880.58,2.78976706]
[1764727664326,0.71525111,882.38,880.58,2.78976706]
[1764727664526,0.71525111,882.37,880.58,2.78976706]
[1764727664825,2.548,882.41,880.58,2.78976706]
[1764727665025,2.548,882.41,880.69,2.78976706]
[1764727665522,2.548,882.41,880.71,2.78976706]
[1764727667121,2.548,882.41,880.76,2.78976706]
[1764727667627,2.548,882.41,880.43,3.90004322]
[1764727667628,2.548,882.41,880.78,2.78976706]
[1764727668125,2.548,882.41,880.77,2.78976706]
[1764727668826,2.548,882.41,880.76,2.78976706]
[1764727669329,2.548,882.41,880.75,2.78976706]
[1764727671331,2.548,882.41,880.74,2.78976706]
[1764727671928,2.548,882.41,880.73,2.78976706]
[1764727673531,6.01426761,882.67,880.73,2.78976706]
[1764727673732,0.71391575,882.66,880.73,2.78976706]
[1764727673933,0.71391575,882.65,880.73,2.78976706]
[1764727674133,0.71391575,882.64,880.73,2.78976706]
[1764727674332,0.71391575,882.63,880.73,2.78976706]
[1764727674532,0.71391575,882.62,880.73,2.78976706]
[1764727674729,0.71391575,882.61,880.73,2.78976706]
[1764727674932,0.71391575,882.6,880.73,2.78976706]
[1764727675129,0.71391575,882.59,880.68,2.78976706]
[1764727675329,0.19726941,882.43,880.68,2.78976706]
[1764727675533,0.19726941,882.43,880.67,2.78976706]
[1764727676234,0.19726941,882.43,880.61,2.78976706]
[1764727676942,2.72,882.42,880.61,2.78976706]
[1764727677242,2.72,882.42,880.62,2.78976706]
[1764727678143,2.72,882.42,880.61,2.78976706]
[1764727679139,0.71393824,882.41,880.61,2.78976706]
[1764727679339,2.72,882.42,880.59,2.78976706]
[1764727679538,0.71383105,882.41,880.59,2.78976706]
[1764727679741,0.71383105,882.4,880.58,2.78976706]
[1764727680039,0.71383105,882.39,880.58,2.78976706]
[1764727680237,2.72,882.42,880.58,2.78976706]
[1764727680441,0.71375869,882.41,880.58,2.78976706]
[1764727680738,0.71375869,882.4,880.58,2.78976706]
[1764727681040,0.71375869,882.39,880.58,2.78976706]
[1764727681238,0.71388994,882.38,880.58,2.78976706]
[1764727681537,2.72,882.42,880.59,2.78976706]
[1764727681737,0.71388994,882.41,880.59,2.78976706]
[1764727681939,0.71388994,882.4,880.59,2.78976706]
[1764727682139,0.71388994,882.39,880.59,2.78976706]
[1764727682338,0.71388994,882.38,880.59,2.78976706]
[1764727682542,2.72,882.42,880.6,2.78976706]
[1764727682940,2.72,882.42,880.73,2.78976706]
[1764727683537,2.72,882.42,880.76,2.78976706]
[1764727684541,2.72,882.42,880.78,2.78976706]
[1764727685048,2.72,882.42,880.86,2.78976706]
[1764727685448,2.72,882.42,880.88,2.78976706]
[1764727686041,2.72,882.42,880.89,2.78976706]
[1764727686546,2.72,882.42,880.9,2.78976706]
[1764727687546,2.72,882.42,880.91,2.78976706]
[1764727688241,2.72,882.42,880.59,3.90004322]
[1764727688242,2.72,882.42,880.92,2.78976706]
[1764727689249,2.72,882.42,880.95,2.78976706]
[1764727689849,2.72,882.42,881.01,2.78976706]
[1764727690943,2.72,882.42,880.96,2.78976706]
[1764727691349,2.72,882.42,880.95,2.78976706]
[1764727692448,2.72,882.42,880.96,2.78976706]
[1764727692949,2.72,882.42,880.95,2.78976706]
[1764727693449,2.72,882.42,880.96,2.78976706]
[1764727694551,2.72,882.42,880.97,2.78976706]
[1764727694750,0.70005572,882.41,880.97,2.78976706]
[1764727694947,0.70005572,882.4,880.97,2.78976706]
[1764727695146,0.70005572,882.39,880.87,2.78976706]
[1764727695450,0.70005572,882.38,880.77,2.78976706]
[1764727695648,0.70005572,882.37,880.77,2.78976706]
[1764727695851,0.70005572,882.36,880.77,2.78976706]
[1764727696151,0.70005572,882.35,880.77,2.78976706]
[1764727696450,0.70005572,882.34,880.77,2.78976706]
[1764727696644,0.70005572,882.33,880.77,2.78976706]
[1764727696845,0.70005572,882.32,880.77,2.78976706]
[1764727697046,0.70005572,882.31,880.72,2.78976706]